[Event "Titled Tuesday Blitz July 18 Early 2023"]
[White "Chor, Kevin"]
[Black "Morefield, Jason"]
[WhiteFideId "2090740"]
[BlackFideId "30920825"]
[WhiteElo "2570"]
[BlackElo "2749"]
[Result "0-1"]
[Round "4"]
[TimeControl "180+2"]
[Date "2023.07.18"]
[WhiteClock "0:00:19"]
[BlackClock "0:01:34"]
[Board "51"]

1. e4 {[%clk 0:03:00]}  d6 {[%clk 0:02:58]} 2. d4 {[%clk 0:03:00]}  Nf6 {[%clk 0:02:59]} 3. Nc3 {[%clk 0:03:01]}  g6 {[%clk 0:02:59]} 4. f4 {[%clk 0:03:01]}  Bg7 {[%clk 0:02:58]} 5. Nf3 {[%clk 0:03:02]}  c5 {[%clk 0:02:59]} 6. dxc5 {[%clk 0:02:36]}  Qa5 {[%clk 0:02:57]} 7. Bd2 {[%clk 0:02:35]}  Qxc5 {[%clk 0:02:57]} 8. Bd3 {[%clk 0:02:35]}  O-O {[%clk 0:02:57]} 9. Qe2 {[%clk 0:02:34]}  Bg4 {[%clk 0:02:57]} 10. h3 {[%clk 0:02:28]}  Bxf3 {[%clk 0:02:56]} 11. Qxf3 {[%clk 0:02:29]}  Nc6 {[%clk 0:02:57]} 12. O-O-O {[%clk 0:02:25]}  Rfc8 {[%clk 0:02:47]} 13. Kb1 {[%clk 0:02:17]}  Nd7 {[%clk 0:02:40]} 14. h4 {[%clk 0:02:09]}  b5 {[%clk 0:02:30]} 15. h5 {[%clk 0:01:53]}  b4 {[%clk 0:02:29]} 16. Nd5 {[%clk 0:01:34]}  e6 {[%clk 0:02:20]} 17. hxg6 {[%clk 0:01:17]}  exd5 {[%clk 0:02:18]} 18. gxf7+ {[%clk 0:01:11]}  Kf8 {[%clk 0:02:17]} 19. exd5 {[%clk 0:01:02]}  Nd4 {[%clk 0:02:14]} 20. Qg4 {[%clk 0:01:01]}  Nf6 {[%clk 0:02:10]} 21. Qg3 {[%clk 0:00:35]}  Qxd5 {[%clk 0:01:51]} 22. f5 {[%clk 0:00:29]}  Ne4 {[%clk 0:01:34]} 23. Bxe4 {[%clk 0:00:18]}  Qxe4 {[%clk 0:01:35]} 24. Qxd6+ {[%clk 0:00:18]}  Kxf7 {[%clk 0:01:34]} 25. Bxb4 {[%clk 0:00:18]}  Qxc2+ {[%clk 0:01:32]} 26. Ka1 {[%clk 0:00:18]}  Nb3+ {[%clk 0:01:33]} 27. axb3 {[%clk 0:00:19]}  Qxb2# {[%clk 0:01:34]} 0-1


[Site "https://www.chess.com"]

[Event "Titled Tuesday Blitz July 18 Early 2023"]
[White "Mekhane, Adam"]
[Black "Goltsev, Dmitry"]
[WhiteFideId "36050601"]
[BlackFideId "24176710"]
[WhiteElo "2570"]
[BlackElo "2743"]
[Result "0-1"]
[Round "4"]
[TimeControl "180+2"]
[Date "2023.07.18"]
[WhiteClock "0:00:00"]
[BlackClock "0:00:27"]
[Board "53"]

1. e4 {[%clk 0:03:00]}  e6 {[%clk 0:03:00]} 2. d4 {[%clk 0:02:59]}  d5 {[%clk 0:03:01]} 3. Nd2 {[%clk 0:02:59]}  c5 {[%clk 0:03:01]} 4. exd5 {[%clk 0:02:59]}  exd5 {[%clk 0:03:01]} 5. Ngf3 {[%clk 0:02:54]}  Nf6 {[%clk 0:03:02]} 6. Bb5+ {[%clk 0:02:54]}  Nc6 {[%clk 0:03:01]} 7. O-O {[%clk 0:02:54]}  Be7 {[%clk 0:03:01]} 8. dxc5 {[%clk 0:02:54]}  Bxc5 {[%clk 0:03:02]} 9. Nb3 {[%clk 0:02:54]}  Bb6 {[%clk 0:03:02]} 10. Re1+ {[%clk 0:02:53]}  Be6 {[%clk 0:03:02]} 11. Nfd4 {[%clk 0:02:52]}  O-O {[%clk 0:03:01]} 12. Bxc6 {[%clk 0:02:41]}  bxc6 {[%clk 0:03:01]} 13. Nxc6 {[%clk 0:02:41]}  Qd6 {[%clk 0:03:00]} 14. Ncd4 {[%clk 0:02:39]}  Bg4 {[%clk 0:03:00]} 15. Qd3 {[%clk 0:02:34]}  Rfe8 {[%clk 0:02:59]} 16. Bg5 {[%clk 0:02:21]}  h6 {[%clk 0:02:58]} 17. Bxf6 {[%clk 0:02:17]}  Qxf6 {[%clk 0:02:59]} 18. c3 {[%clk 0:02:12]}  Bh5 {[%clk 0:02:51]} 19. Re3 {[%clk 0:02:04]}  Bg6 {[%clk 0:02:49]} 20. Qd2 {[%clk 0:02:01]}  Rxe3 {[%clk 0:02:45]} 21. Qxe3 {[%clk 0:02:00]}  a5 {[%clk 0:02:45]} 22. a4 {[%clk 0:01:38]}  Rb8 {[%clk 0:02:40]} 23. Qd2 {[%clk 0:01:24]}  Kh7 {[%clk 0:02:27]} 24. Re1 {[%clk 0:01:21]}  Qd6 {[%clk 0:02:18]} 25. h4 {[%clk 0:01:04]}  Bc7 {[%clk 0:02:10]} 26. g3 {[%clk 0:00:56]}  Bb6 {[%clk 0:02:08]} 27. Re2 {[%clk 0:00:42]}  Ba7 {[%clk 0:02:03]} 28. Qf4 {[%clk 0:00:31]}  Qxf4 {[%clk 0:01:55]} 29. gxf4 {[%clk 0:00:32]}  Bh5 {[%clk 0:01:30]} 30. Rd2 {[%clk 0:00:22]}  Bb6 {[%clk 0:01:15]} 31. Nc6 {[%clk 0:00:19]}  Re8 {[%clk 0:00:46]} 32. Kf1 {[%clk 0:00:14]}  Bf3 {[%clk 0:00:40]} 33. Nbxa5 {[%clk 0:00:10]}  Re4 {[%clk 0:00:32]} 34. b4 {[%clk 0:00:07]}  Rxf4 {[%clk 0:00:30]} 35. Nb3 {[%clk 0:00:00]}  Rxh4 {[%clk 0:00:27]} 0-1


[Site "https://www.chess.com"]

[Event "Titled Tuesday Blitz July 18 Early 2023"]
[White "Papasimakopoulos, Alexandros"]
[Black "Pinero Rodriguez, Carlos Jose"]
[WhiteFideId "4244125"]
[BlackFideId "3901726"]
[WhiteElo "2737"]
[BlackElo "2569"]
[Result "0-1"]
[Round "4"]
[TimeControl "180+2"]
[Date "2023.07.18"]
[WhiteClock "0:01:33"]
[BlackClock "0:00:16"]
[Board "54"]

1. d4 {[%clk 0:02:57]}  Nf6 {[%clk 0:02:58]} 2. c4 {[%clk 0:02:58]}  e6 {[%clk 0:02:58]} 3. Nc3 {[%clk 0:02:59]}  Bb4 {[%clk 0:02:59]} 4. Bd2 {[%clk 0:02:59]}  O-O {[%clk 0:02:57]} 5. e3 {[%clk 0:03:00]}  b6 {[%clk 0:02:54]} 6. Nf3 {[%clk 0:02:55]}  Bb7 {[%clk 0:02:54]} 7. Bd3 {[%clk 0:02:48]}  d6 {[%clk 0:02:51]} 8. O-O {[%clk 0:02:44]}  Nbd7 {[%clk 0:02:50]} 9. Re1 {[%clk 0:02:44]}  Bxc3 {[%clk 0:02:49]} 10. Bxc3 {[%clk 0:02:44]}  Ne4 {[%clk 0:02:49]} 11. Qc2 {[%clk 0:02:43]}  f5 {[%clk 0:02:47]} 12. b4 {[%clk 0:02:44]}  Ndf6 {[%clk 0:02:44]} 13. Bb2 {[%clk 0:02:42]}  a5 {[%clk 0:02:41]} 14. a3 {[%clk 0:02:42]}  Qe7 {[%clk 0:02:40]} 15. Nd2 {[%clk 0:02:40]}  Nxd2 {[%clk 0:02:39]} 16. Qxd2 {[%clk 0:02:41]}  Ne4 {[%clk 0:02:40]} 17. Qc2 {[%clk 0:02:41]}  Rf6 {[%clk 0:02:34]} 18. f3 {[%clk 0:02:40]}  Ng5 {[%clk 0:02:34]} 19. e4 {[%clk 0:02:38]}  fxe4 {[%clk 0:02:33]} 20. fxe4 {[%clk 0:02:39]}  e5 {[%clk 0:02:32]} 21. d5 {[%clk 0:02:36]}  axb4 {[%clk 0:02:17]} 22. axb4 {[%clk 0:02:37]}  Raf8 {[%clk 0:02:17]} 23. Rf1 {[%clk 0:02:37]}  Rg6 {[%clk 0:02:15]} 24. Rxf8+ {[%clk 0:02:36]}  Qxf8 {[%clk 0:02:15]} 25. Rf1 {[%clk 0:02:36]}  Rf6 {[%clk 0:02:03]} 26. Qe2 {[%clk 0:02:31]}  Bc8 {[%clk 0:01:58]} 27. Rxf6 {[%clk 0:02:29]}  Qxf6 {[%clk 0:01:59]} 28. Qf2 {[%clk 0:02:30]}  Qg6 {[%clk 0:01:50]} 29. Kf1 {[%clk 0:02:29]}  Nxe4 {[%clk 0:01:40]} 30. Qe3 {[%clk 0:02:23]}  Bf5 {[%clk 0:01:40]} 31. Bc1 {[%clk 0:02:15]}  Ng3+ {[%clk 0:01:33]} 32. hxg3 {[%clk 0:02:11]}  Bxd3+ {[%clk 0:01:33]} 33. Kg1 {[%clk 0:02:11]}  Bxc4 {[%clk 0:01:31]} 34. Qc3 {[%clk 0:02:12]}  Qd3 {[%clk 0:01:30]} 35. Qa1 {[%clk 0:02:10]}  Bxd5 {[%clk 0:01:28]} 36. Qb2 {[%clk 0:02:08]}  Qd4+ {[%clk 0:01:22]} 37. Qxd4 {[%clk 0:02:07]}  exd4 {[%clk 0:01:23]} 38. Kf2 {[%clk 0:02:07]}  Be4 {[%clk 0:01:19]} 39. Bg5 {[%clk 0:02:02]}  c5 {[%clk 0:01:11]} 40. Be7 {[%clk 0:02:01]}  c4 {[%clk 0:01:01]} 41. Bxd6 {[%clk 0:02:01]}  c3 {[%clk 0:00:59]} 42. Be5 {[%clk 0:01:57]}  c2 {[%clk 0:00:58]} 43. Bf4 {[%clk 0:01:58]}  Kf7 {[%clk 0:00:56]} 44. g4 {[%clk 0:01:56]}  Ke6 {[%clk 0:00:55]} 45. g3 {[%clk 0:01:56]}  Kd5 {[%clk 0:00:54]} 46. Ke2 {[%clk 0:01:53]}  Kc4 {[%clk 0:00:54]} 47. Kd2 {[%clk 0:01:54]}  Kxb4 {[%clk 0:00:53]} 48. Be5 {[%clk 0:01:55]}  Kc4 {[%clk 0:00:52]} 49. Bxg7 {[%clk 0:01:55]}  b5 {[%clk 0:00:53]} 50. g5 {[%clk 0:01:54]}  b4 {[%clk 0:00:52]} 51. Bf8 {[%clk 0:01:51]}  Bg6 {[%clk 0:00:32]} 52. Be7 {[%clk 0:01:48]}  d3 {[%clk 0:00:17]} 53. Kc1 {[%clk 0:01:43]}  Kc3 {[%clk 0:00:15]} 54. Bf6+ {[%clk 0:01:42]}  Kb3 {[%clk 0:00:16]} 55. Be7 {[%clk 0:01:41]}  Ka4 {[%clk 0:00:15]} 56. Bd6 {[%clk 0:01:40]}  b3 {[%clk 0:00:15]} 57. Bf4 {[%clk 0:01:35]}  Ka3 {[%clk 0:00:15]} 58. Be5 {[%clk 0:01:34]}  Ka2 {[%clk 0:00:15]} 59. Bd4 {[%clk 0:01:34]}  d2+ {[%clk 0:00:15]} 60. Kxd2 {[%clk 0:01:34]}  b2 {[%clk 0:00:16]} 61. Bxb2 {[%clk 0:01:33]}  Kxb2 {[%clk 0:00:16]} 0-1


[Site "https://www.chess.com"]

[Event "Titled Tuesday Blitz July 18 Early 2023"]
[White "Preotu, Razvan"]
[Black "Makkar, Rajat"]
[WhiteFideId "2613280"]
[BlackFideId "36016810"]
[WhiteElo "2731"]
[BlackElo "2567"]
[Result "1-0"]
[Round "4"]
[TimeControl "180+2"]
[Date "2023.07.18"]
[WhiteClock "0:00:07"]
[BlackClock "0:00:09"]
[Board "57"]

1. e4 {[%clk 0:03:00]}  e5 {[%clk 0:03:00]} 2. Nf3 {[%clk 0:03:00]}  Nc6 {[%clk 0:03:00]} 3. Bc4 {[%clk 0:03:00]}  Bc5 {[%clk 0:03:00]} 4. c3 {[%clk 0:03:00]}  Nf6 {[%clk 0:03:01]} 5. d3 {[%clk 0:03:00]}  d6 {[%clk 0:03:00]} 6. O-O {[%clk 0:03:01]}  O-O {[%clk 0:03:00]} 7. Re1 {[%clk 0:03:01]}  a5 {[%clk 0:03:00]} 8. h3 {[%clk 0:03:01]}  Ba7 {[%clk 0:02:59]} 9. Nbd2 {[%clk 0:02:58]}  Be6 {[%clk 0:02:59]} 10. Bb5 {[%clk 0:02:57]}  Ne7 {[%clk 0:02:57]} 11. d4 {[%clk 0:02:58]}  Ng6 {[%clk 0:02:53]} 12. Bd3 {[%clk 0:02:19]}  Nh5 {[%clk 0:02:33]} 13. Nf1 {[%clk 0:02:17]}  Nhf4 {[%clk 0:02:30]} 14. Be3 {[%clk 0:01:48]}  Nxd3 {[%clk 0:02:03]} 15. Qxd3 {[%clk 0:01:49]}  f5 {[%clk 0:01:58]} 16. dxe5 {[%clk 0:01:38]}  fxe4 {[%clk 0:01:58]} 17. Qxe4 {[%clk 0:01:37]}  d5 {[%clk 0:01:59]} 18. Qd3 {[%clk 0:00:54]}  Rxf3 {[%clk 0:01:31]} 19. gxf3 {[%clk 0:00:55]}  Qh4 {[%clk 0:01:15]} 20. Nh2 {[%clk 0:00:31]}  Bxe3 {[%clk 0:01:03]} 21. fxe3 {[%clk 0:00:28]}  Nxe5 {[%clk 0:00:55]} 22. Qe2 {[%clk 0:00:25]}  Bxh3 {[%clk 0:00:50]} 23. Qf2 {[%clk 0:00:24]}  Qg5+ {[%clk 0:00:48]} 24. Kh1 {[%clk 0:00:25]}  Nd3 {[%clk 0:00:45]} 25. Qg1 {[%clk 0:00:23]}  Qf5 {[%clk 0:00:37]} 26. Re2 {[%clk 0:00:18]}  Ra6 {[%clk 0:00:37]} 27. Qg3 {[%clk 0:00:16]}  Rg6 {[%clk 0:00:28]} 28. Qxc7 {[%clk 0:00:16]}  h6 {[%clk 0:00:25]} 29. Rg1 {[%clk 0:00:05]}  Rxg1+ {[%clk 0:00:20]} 30. Kxg1 {[%clk 0:00:06]}  Ne5 {[%clk 0:00:20]} 31. Qd8+ {[%clk 0:00:04]}  Kh7 {[%clk 0:00:19]} 32. Qxd5 {[%clk 0:00:04]}  Qb1+ {[%clk 0:00:18]} 33. Kf2 {[%clk 0:00:03]}  Nd3+ {[%clk 0:00:15]} 34. Kg3 {[%clk 0:00:03]}  Bc8 {[%clk 0:00:09]} 35. Qe4+ {[%clk 0:00:04]}  g6 {[%clk 0:00:08]} 36. Qe7+ {[%clk 0:00:03]}  Kh8 {[%clk 0:00:09]} 37. Qf8+ {[%clk 0:00:03]}  Kh7 {[%clk 0:00:10]} 38. Qf7+ {[%clk 0:00:01]}  Kh8 {[%clk 0:00:10]} 39. Qf8+ {[%clk 0:00:02]}  Kh7 {[%clk 0:00:09]} 40. Qxc8 {[%clk 0:00:03]}  Qg1+ {[%clk 0:00:10]} 41. Rg2 {[%clk 0:00:03]}  Qxe3 {[%clk 0:00:10]} 42. Qd7+ {[%clk 0:00:03]}  Kh8 {[%clk 0:00:11]} 43. Qd4+ {[%clk 0:00:03]}  Qxd4 {[%clk 0:00:09]} 44. cxd4 {[%clk 0:00:04]}  Nb4 {[%clk 0:00:09]} 45. Rd2 {[%clk 0:00:04]}  Kg7 {[%clk 0:00:10]} 46. d5 {[%clk 0:00:05]}  Kf7 {[%clk 0:00:11]} 47. d6 {[%clk 0:00:06]}  Ke8 {[%clk 0:00:11]} 48. d7+ {[%clk 0:00:06]}  Kd8 {[%clk 0:00:09]} 49. Ng4 {[%clk 0:00:07]} 1-0


[Site "https://www.chess.com"]

[Event "Titled Tuesday Blitz July 18 Early 2023"]
[White "Panesar Vedant"]
[Black "Siniauski, Artsiom"]
[WhiteFideId "35033018"]
[BlackFideId "13512269"]
[WhiteElo "2727"]
[BlackElo "2559"]
[Result "1-0"]
[Round "4"]
[TimeControl "180+2"]
[Date "2023.07.18"]
[WhiteClock "0:00:20"]
[BlackClock "0:00:00"]
[Board "59"]

1. d4 {[%clk 0:03:00]}  Nf6 {[%clk 0:02:56]} 2. c4 {[%clk 0:03:01]}  e6 {[%clk 0:02:53]} 3. g3 {[%clk 0:03:02]}  d5 {[%clk 0:02:53]} 4. Bg2 {[%clk 0:03:02]}  Bb4+ {[%clk 0:02:44]} 5. Bd2 {[%clk 0:03:00]}  Be7 {[%clk 0:02:44]} 6. Nf3 {[%clk 0:02:59]}  c6 {[%clk 0:02:44]} 7. Qc2 {[%clk 0:02:57]}  O-O {[%clk 0:02:44]} 8. O-O {[%clk 0:02:55]}  Nbd7 {[%clk 0:02:45]} 9. b3 {[%clk 0:02:56]}  Ne4 {[%clk 0:02:33]} 10. Nc3 {[%clk 0:02:53]}  Nxd2 {[%clk 0:02:22]} 11. Nxd2 {[%clk 0:02:49]}  f5 {[%clk 0:02:22]} 12. e3 {[%clk 0:02:46]}  Nf6 {[%clk 0:02:19]} 13. Rab1 {[%clk 0:02:44]}  Bd7 {[%clk 0:02:19]} 14. b4 {[%clk 0:02:44]}  a5 {[%clk 0:02:17]} 15. b5 {[%clk 0:02:30]}  Bb4 {[%clk 0:02:00]} 16. bxc6 {[%clk 0:02:20]}  bxc6 {[%clk 0:01:33]} 17. Na4 {[%clk 0:02:10]}  Be8 {[%clk 0:01:28]} 18. c5 {[%clk 0:02:02]}  f4 {[%clk 0:01:20]} 19. exf4 {[%clk 0:01:42]}  Bg6 {[%clk 0:01:18]} 20. Qd1 {[%clk 0:01:43]}  Bxd2 {[%clk 0:01:04]} 21. Qxd2 {[%clk 0:01:43]}  Bxb1 {[%clk 0:01:04]} 22. Rxb1 {[%clk 0:01:44]}  Rb8 {[%clk 0:01:00]} 23. Nb6 {[%clk 0:01:32]}  a4 {[%clk 0:00:57]} 24. Qe2 {[%clk 0:01:22]}  Re8 {[%clk 0:00:53]} 25. Bh3 {[%clk 0:01:16]}  Ne4 {[%clk 0:00:48]} 26. Rb4 {[%clk 0:01:04]}  Qe7 {[%clk 0:00:19]} 27. Qe3 {[%clk 0:00:57]}  Rb7 {[%clk 0:00:12]} 28. Rxa4 {[%clk 0:00:54]}  Reb8 {[%clk 0:00:07]} 29. f3 {[%clk 0:00:54]}  Nf6 {[%clk 0:00:07]} 30. Qxe6+ {[%clk 0:00:50]}  Qxe6 {[%clk 0:00:08]} 31. Bxe6+ {[%clk 0:00:51]}  Kf8 {[%clk 0:00:08]} 32. f5 {[%clk 0:00:43]}  g6 {[%clk 0:00:09]} 33. g4 {[%clk 0:00:40]}  gxf5 {[%clk 0:00:09]} 34. Bxf5 {[%clk 0:00:41]}  Re7 {[%clk 0:00:09]} 35. g5 {[%clk 0:00:33]}  Rbe8 {[%clk 0:00:02]} 36. gxf6 {[%clk 0:00:26]}  Re1+ {[%clk 0:00:02]} 37. Kf2 {[%clk 0:00:27]}  R8e2+ {[%clk 0:00:03]} 38. Kg3 {[%clk 0:00:27]}  Kf7 {[%clk 0:00:04]} 39. Bg4 {[%clk 0:00:22]}  Kxf6 {[%clk 0:00:05]} 40. Nd7+ {[%clk 0:00:22]}  Ke7 {[%clk 0:00:05]} 41. Ne5 {[%clk 0:00:22]}  Kf6 {[%clk 0:00:03]} 42. Ra6 {[%clk 0:00:20]}  Rd2 {[%clk 0:00:02]} 43. Rxc6+ {[%clk 0:00:20]}  Ke7 {[%clk 0:00:00]} 44. Re6+ {[%clk 0:00:20]} 1-0


[Site "https://www.chess.com"]

[Event "Titled Tuesday Blitz July 18 Early 2023"]
[White "Amilal Munkhdalai"]
[Black "robertoalejandro10"]
[WhiteFideId "4903250"]
[WhiteElo "2713"]
[BlackElo "2554"]
[Result "1-0"]
[Round "4"]
[TimeControl "180+2"]
[Date "2023.07.18"]
[WhiteClock "0:01:14"]
[BlackClock "0:00:00"]
[Board "63"]

1. e4 {[%clk 0:02:59]}  c5 {[%clk 0:02:59]} 2. Nf3 {[%clk 0:03:00]}  g6 {[%clk 0:02:58]} 3. d4 {[%clk 0:03:00]}  cxd4 {[%clk 0:02:59]} 4. Nxd4 {[%clk 0:02:59]}  Bg7 {[%clk 0:02:58]} 5. c4 {[%clk 0:02:59]}  Nc6 {[%clk 0:02:58]} 6. Be3 {[%clk 0:02:58]}  Nf6 {[%clk 0:02:54]} 7. Nc3 {[%clk 0:02:57]}  Ng4 {[%clk 0:02:53]} 8. Qxg4 {[%clk 0:02:57]}  Nxd4 {[%clk 0:02:52]} 9. Qd1 {[%clk 0:02:57]}  Ne6 {[%clk 0:02:52]} 10. Rc1 {[%clk 0:02:53]}  b6 {[%clk 0:02:51]} 11. Be2 {[%clk 0:02:53]}  Bb7 {[%clk 0:02:51]} 12. f3 {[%clk 0:02:48]}  O-O {[%clk 0:02:50]} 13. O-O {[%clk 0:02:47]}  Be5 {[%clk 0:02:49]} 14. g3 {[%clk 0:02:23]}  f5 {[%clk 0:01:59]} 15. exf5 {[%clk 0:02:22]}  Rxf5 {[%clk 0:01:55]} 16. f4 {[%clk 0:02:21]}  Bg7 {[%clk 0:01:24]} 17. Bf3 {[%clk 0:02:20]}  Bxf3 {[%clk 0:01:11]} 18. Qxf3 {[%clk 0:02:20]}  Rc8 {[%clk 0:01:00]} 19. b3 {[%clk 0:02:15]}  Bxc3 {[%clk 0:00:41]} 20. Rxc3 {[%clk 0:02:15]}  Qc7 {[%clk 0:00:42]} 21. Rd3 {[%clk 0:02:03]}  d6 {[%clk 0:00:41]} 22. Rd5 {[%clk 0:01:55]}  Rcf8 {[%clk 0:00:38]} 23. Rxf5 {[%clk 0:01:48]}  Rxf5 {[%clk 0:00:39]} 24. g4 {[%clk 0:01:48]}  Rf7 {[%clk 0:00:39]} 25. Qd5 {[%clk 0:01:44]}  Nd8 {[%clk 0:00:07]} 26. f5 {[%clk 0:01:36]}  gxf5 {[%clk 0:00:08]} 27. Rxf5 {[%clk 0:01:26]}  e6 {[%clk 0:00:07]} 28. Rxf7 {[%clk 0:01:15]}  Qxf7 {[%clk 0:00:00]} 29. Qg5+ {[%clk 0:01:14]} 1-0


[Site "https://www.chess.com"]

[Event "Titled Tuesday Blitz July 18 Early 2023"]
[White "Guliev, Logman"]
[Black "Hilary46"]
[WhiteFideId "13400061"]
[WhiteElo "2553"]
[BlackElo "2708"]
[Result "1-0"]
[Round "4"]
[TimeControl "180+2"]
[Date "2023.07.18"]
[WhiteClock "0:00:32"]
[BlackClock "0:01:05"]
[Board "64"]

1. e4 {[%clk 0:03:00]}  e5 {[%clk 0:02:57]} 2. Nf3 {[%clk 0:03:00]}  Nc6 {[%clk 0:02:57]} 3. Bb5 {[%clk 0:03:00]}  a6 {[%clk 0:02:57]} 4. Ba4 {[%clk 0:03:01]}  Nf6 {[%clk 0:02:58]} 5. O-O {[%clk 0:03:01]}  Nxe4 {[%clk 0:02:58]} 6. d4 {[%clk 0:03:01]}  b5 {[%clk 0:02:59]} 7. Bb3 {[%clk 0:03:01]}  d5 {[%clk 0:02:59]} 8. dxe5 {[%clk 0:03:02]}  Be6 {[%clk 0:03:00]} 9. Be3 {[%clk 0:03:02]}  Be7 {[%clk 0:02:49]} 10. Nbd2 {[%clk 0:02:59]}  Nc5 {[%clk 0:02:48]} 11. c3 {[%clk 0:02:59]}  Nd7 {[%clk 0:02:41]} 12. Re1 {[%clk 0:02:46]}  O-O {[%clk 0:02:40]} 13. Bf4 {[%clk 0:02:40]}  Nc5 {[%clk 0:02:35]} 14. Bc2 {[%clk 0:02:37]}  d4 {[%clk 0:02:35]} 15. cxd4 {[%clk 0:02:35]}  Nxd4 {[%clk 0:02:36]} 16. Nxd4 {[%clk 0:02:35]}  Qxd4 {[%clk 0:02:37]} 17. Be3 {[%clk 0:02:32]}  Qxb2 {[%clk 0:02:30]} 18. Rc1 {[%clk 0:02:26]}  Rad8 {[%clk 0:02:27]} 19. Qf3 {[%clk 0:01:43]}  Nd3 {[%clk 0:02:11]} 20. Qe4 {[%clk 0:01:25]}  Qxc2 {[%clk 0:01:38]} 21. Rxc2 {[%clk 0:01:21]}  Nxe1 {[%clk 0:01:39]} 22. Rxc7 {[%clk 0:01:16]}  Bb4 {[%clk 0:01:36]} 23. Qxb4 {[%clk 0:01:09]}  Nd3 {[%clk 0:01:35]} 24. Qe4 {[%clk 0:01:04]}  Bxa2 {[%clk 0:01:34]} 25. f4 {[%clk 0:01:00]}  a5 {[%clk 0:01:32]} 26. h3 {[%clk 0:00:52]}  b4 {[%clk 0:01:31]} 27. f5 {[%clk 0:00:45]}  Rfe8 {[%clk 0:01:25]} 28. e6 {[%clk 0:00:42]}  fxe6 {[%clk 0:01:24]} 29. Qg4 {[%clk 0:00:40]}  g6 {[%clk 0:01:14]} 30. Qh4 {[%clk 0:00:35]}  h5 {[%clk 0:01:10]} 31. Qf6 {[%clk 0:00:34]}  Rd7 {[%clk 0:01:05]} 32. Rxd7 {[%clk 0:00:32]} 1-0


[Site "https://www.chess.com"]

[Event "Titled Tuesday Blitz July 18 Early 2023"]
[White "Ezat, Mohamed"]
[Black "Basso, Pier Luigi"]
[WhiteFideId "10600906"]
[BlackFideId "866970"]
[WhiteElo "2546"]
[BlackElo "2700"]
[Result "0-1"]
[Round "4"]
[TimeControl "180+2"]
[Date "2023.07.18"]
[WhiteClock "0:00:08"]
[BlackClock "0:01:14"]
[Board "66"]

1. d4 {[%clk 0:03:00]}  d5 {[%clk 0:02:58]} 2. c4 {[%clk 0:03:00]}  c6 {[%clk 0:02:59]} 3. Nc3 {[%clk 0:03:00]}  Nf6 {[%clk 0:02:59]} 4. cxd5 {[%clk 0:03:01]}  cxd5 {[%clk 0:02:59]} 5. Bf4 {[%clk 0:03:00]}  Nc6 {[%clk 0:02:59]} 6. e3 {[%clk 0:03:00]}  Bg4 {[%clk 0:03:00]} 7. Qb3 {[%clk 0:02:58]}  Na5 {[%clk 0:03:00]} 8. Qa4+ {[%clk 0:02:57]}  Bd7 {[%clk 0:03:00]} 9. Qc2 {[%clk 0:02:58]}  e6 {[%clk 0:03:01]} 10. Bd3 {[%clk 0:02:57]}  Nh5 {[%clk 0:03:01]} 11. Be5 {[%clk 0:02:55]}  Nc6 {[%clk 0:03:01]} 12. a3 {[%clk 0:02:53]}  Nxe5 {[%clk 0:03:00]} 13. dxe5 {[%clk 0:02:54]}  Qg5 {[%clk 0:03:01]} 14. f4 {[%clk 0:02:35]}  Qh4+ {[%clk 0:03:00]} 15. Qf2 {[%clk 0:02:34]}  Qxf2+ {[%clk 0:02:58]} 16. Kxf2 {[%clk 0:02:35]}  Bc5 {[%clk 0:02:26]} 17. Nge2 {[%clk 0:02:14]}  f6 {[%clk 0:02:20]} 18. g4 {[%clk 0:02:03]}  Nxf4 {[%clk 0:02:20]} 19. Nxf4 {[%clk 0:02:02]}  fxe5 {[%clk 0:02:21]} 20. Nfe2 {[%clk 0:01:57]}  O-O+ {[%clk 0:02:20]} 21. Kg2 {[%clk 0:01:55]}  Bxe3 {[%clk 0:02:18]} 22. Raf1 {[%clk 0:01:55]}  e4 {[%clk 0:02:13]} 23. Bb5 {[%clk 0:01:51]}  Bc6 {[%clk 0:02:13]} 24. Bxc6 {[%clk 0:01:50]}  bxc6 {[%clk 0:02:14]} 25. Nd1 {[%clk 0:01:21]}  Bb6 {[%clk 0:02:10]} 26. Rxf8+ {[%clk 0:01:17]}  Kxf8 {[%clk 0:02:11]} 27. Rf1+ {[%clk 0:01:16]}  Ke7 {[%clk 0:02:12]} 28. Ng3 {[%clk 0:00:59]}  Bd4 {[%clk 0:02:07]} 29. Ne2 {[%clk 0:00:47]}  Be5 {[%clk 0:02:06]} 30. Ne3 {[%clk 0:00:45]}  a5 {[%clk 0:01:36]} 31. Rc1 {[%clk 0:00:43]}  Kd6 {[%clk 0:01:35]} 32. Rd1 {[%clk 0:00:39]}  Kc7 {[%clk 0:01:35]} 33. Nd4 {[%clk 0:00:38]}  Kd7 {[%clk 0:01:28]} 34. b3 {[%clk 0:00:22]}  Rb8 {[%clk 0:01:27]} 35. Nec2 {[%clk 0:00:22]}  c5 {[%clk 0:01:26]} 36. Ne2 {[%clk 0:00:15]}  Rxb3 {[%clk 0:01:26]} 37. h4 {[%clk 0:00:14]}  Rb2 {[%clk 0:01:19]} 38. Rc1 {[%clk 0:00:14]}  Kd6 {[%clk 0:01:17]} 39. Kf1 {[%clk 0:00:13]}  d4 {[%clk 0:01:17]} 40. Ne1 {[%clk 0:00:12]}  d3 {[%clk 0:01:14]} 41. Nc3 {[%clk 0:00:12]}  Bxc3 {[%clk 0:01:14]} 42. Rxc3 {[%clk 0:00:12]}  d2 {[%clk 0:01:14]} 43. Ke2 {[%clk 0:00:12]}  dxe1=Q+ {[%clk 0:01:14]} 44. Kxe1 {[%clk 0:00:08]}  Kd5 {[%clk 0:01:14]} 0-1


[Site "https://www.chess.com"]

[Event "Titled Tuesday Blitz July 18 Early 2023"]
[White "Liyanage, Ranindu Dilshan"]
[Black "Hajiyev, Kanan"]
[WhiteFideId "9915834"]
[BlackFideId "13404148"]
[WhiteElo "2698"]
[BlackElo "2545"]
[Result "1-0"]
[Round "4"]
[TimeControl "180+2"]
[Date "2023.07.18"]
[WhiteClock "0:00:50"]
[BlackClock "0:00:20"]
[Board "67"]

1. e4 {[%clk 0:02:59]}  c6 {[%clk 0:03:00]} 2. d4 {[%clk 0:02:59]}  d5 {[%clk 0:03:01]} 3. e5 {[%clk 0:03:00]}  a6 {[%clk 0:03:01]} 4. c4 {[%clk 0:02:55]}  Bf5 {[%clk 0:03:00]} 5. Nc3 {[%clk 0:02:55]}  e6 {[%clk 0:03:00]} 6. h4 {[%clk 0:02:50]}  h5 {[%clk 0:02:59]} 7. Nge2 {[%clk 0:02:50]}  Nh6 {[%clk 0:02:34]} 8. Ng3 {[%clk 0:02:48]}  Bg6 {[%clk 0:02:35]} 9. cxd5 {[%clk 0:02:29]}  cxd5 {[%clk 0:02:34]} 10. Bd3 {[%clk 0:02:21]}  Nc6 {[%clk 0:02:25]} 11. Bxg6 {[%clk 0:02:08]}  fxg6 {[%clk 0:02:25]} 12. Nge2 {[%clk 0:02:07]}  Nf5 {[%clk 0:02:21]} 13. Nf4 {[%clk 0:02:01]}  Kf7 {[%clk 0:02:17]} 14. g4 {[%clk 0:01:44]}  hxg4 {[%clk 0:01:54]} 15. Qxg4 {[%clk 0:01:45]}  Rh6 {[%clk 0:01:51]} 16. Nxe6 {[%clk 0:01:23]}  Kxe6 {[%clk 0:01:40]} 17. Bxh6 {[%clk 0:01:21]}  Nxd4 {[%clk 0:01:21]} 18. O-O-O {[%clk 0:01:15]}  gxh6 {[%clk 0:01:14]} 19. Rxd4 {[%clk 0:01:07]}  g5 {[%clk 0:00:57]} 20. Rxd5 {[%clk 0:01:03]}  Qc7 {[%clk 0:00:39]} 21. Rhd1 {[%clk 0:00:57]}  b5 {[%clk 0:00:31]} 22. Rd6+ {[%clk 0:00:55]}  Bxd6 {[%clk 0:00:28]} 23. Rxd6+ {[%clk 0:00:53]}  Kxe5 {[%clk 0:00:26]} 24. Rd5+ {[%clk 0:00:53]}  Ke6 {[%clk 0:00:24]} 25. Qxf5+ {[%clk 0:00:53]}  Ke7 {[%clk 0:00:24]} 26. Re5+ {[%clk 0:00:53]}  Kd6 {[%clk 0:00:20]} 27. Qe6# {[%clk 0:00:50]} 1-0


[Site "https://www.chess.com"]